Cogmind - Beta 14 @@@ ROGUE MODE // 2025.03.02 @ 22:50:13 Player: mix Result: Destroyed by Y-45 Defender with Beam Rifle Performance ------------- Evolutions (1) 500 Regions Visited (3) 600 Robots Destroyed (50) 250 Value Destroyed (1283) 1283 Prototype IDs (2) 40 Alien Tech Used (0) 0 Bonus (0) 0 TOTAL SCORE: 2673 Bonus ------- None Cogmind --------- Core Integrity 0/400 Matter 300/300 Energy 100/100 System Corruption 2% Temperature Cool (9) Movement Core (200) Ox3 Location -9/Materials Parts ------- > --- POWER (1) -------- (None) > --- PROPULSION (2) --- (None) > --- UTILITY (4) ------ Medium Storage Unit > --- WEAPON (2) ------- Medium Laser > --- INVENTORY (10) --- Large Storage Unit Medium Laser Beam Cannon Peak State ------------ > --- POWER ------------ Light Nuclear Core > --- PROPULSION ------- Compact Wheel Armored Wheel > --- UTILITY ---------- Improved Heat Sink Medium Storage Unit Light Armor Plating Light Armor Plating > --- WEAPON ----------- Heavy EM Pulse Gun Heavy EM Pulse Gun > --- INVENTORY -------- Compact Wheel Large Storage Unit Heavy EM Pulse Gun EM Shotgun Medium Laser Medium Laser Beam Cannon [Rating: 16] Favorites ----------- Power Light Nuclear Core Engine Light Ion Engine Power Core Light Nuclear Core Propulsion Compact Wheel Treads Light Treads Wheel Compact Wheel Utility Medium Storage Unit Device Improved Terrain Scanner Storage Medium Storage Unit Processor Terrain Scan Processor Protection Light Armor Plating Weapon Beam Cannon Energy Gun EM Pulse Gun Energy Cannon Beam Cannon Ballistic Gun Light Assault Rifle Launcher Grenade Launcher Build | -11 -10 -10 -9 ------- Run | Yrd Mat Min Mat Slots Evolved 2 | . . . 2 Power . | . . . . Propulsion . | . . . . Utility 2 | . . . 2 Weapon . | . . . . Parts Attached 45 | 7 10 2 26 Power 5 | 1 2 . 2 Engine 3 | 1 1 . 1 Core 2 | . 1 . 1 Reactor . | . . . . Propulsion 11 | 2 1 1 7 Treads 2 | . . 1 1 Leg . | . . . . Wheel 9 | 2 1 . 6 Hover . | . . . . Flight . | . . . . Utility 8 | 2 2 1 3 Device 2 | 1 . . 1 Storage 3 | 1 1 1 . Processor 1 | . 1 . . Hackware . | . . . . Protection 2 | . . . 2 Artifact . | . . . . Weapon 21 | 2 5 . 14 Energy Gun 12 | 2 1 . 9 Energy Cannon 5 | . 2 . 3 Ballistic Gun 3 | . 2 . 1 Ballistic Cannon . | . . . . Launcher 1 | . . . 1 Special Weapon . | . . . . Impact Weapon . | . . . . Slashing Weapon . | . . . . Piercing Weapon . | . . . . Special Melee Weapon . | . . . . Unidentified Prototypes . | . . . . Parts Lost 25 | . 5 2 18 Power 3 | . 1 1 1 Propulsion 8 | . 1 1 6 Utility 4 | . . . 4 Weapon 10 | . 3 . 7 Highest Loss Streak 7 | . 2 2 7 To Critical Strikes . | . . . . Average Slot Usage (%) 87 | . 98 87 77 Engine 5 | . 9 4 1 Core 4 | . 4 . 5 Treads 1 | . . 6 1 Wheel 22 | . 27 19 17 Device 12 | . 14 14 11 Storage 9 | . 7 6 11 Processor 3 | . 6 7 . Protection 3 | . . . 7 Energy Gun 12 | . 10 . 16 Energy Cannon 10 | . 13 28 4 Ballistic Gun 1 | . 3 . . Peak Build Rating 16 | 9 11 10 16 Average Rating 10 | 4 9 8 11 On Entrance 6 | . 9 10 8 Naked Turns . | . . . . Heaviest Build 28 | 15 20 17 28 Greatest Support 32 | 32 32 26 32 Greatest Overweight (x) 4 | . 1 1 4 Average Overweight (x) . | . . . . Largest Inventory Capacity 10 | 8 10 10 10 Average Capacity 8 | 7 7 7 10 Most Carried 8 | 5 4 5 8 Average Carried 2 | 1 1 4 3 Final Capacity 10 | 8 5 10 10 Final Carried 4 | . 4 4 3 Class Distribution -------------------- 63% | Mutant 36% | Scavenger-Mutant Dominant Class ---------------- Scavenger-Mutant | -10/Materials Mutant | -10/Mines Mutant | -9/Materials Resources | -11 -10 -10 -9 ----------- Run | Yrd Mat Min Mat Matter Collected 651 | 230 161 20 240 Remotely . | . . . . Salvage Created 1886 | 23 683 111 1069 Parts 120 | 2 45 4 69 Haulers Intercepted 3 | . 2 . 1 Recyclers Shooed 4 | . 2 . 2 Parts Field Recycled . | . . . . Retrieved Matter . | . . . . Parts Self-Destructed . | . . . . Prevented . | . . . . Kills | -11 -10 -10 -9 ------- Run | Yrd Mat Min Mat Combat Hostiles Destroyed 33 | . 10 2 21 Guns 26 | . 10 . 16 Cannons 5 | . . 2 3 AOE 2 | . . . 2 Classes Destroyed 10 | 1 7 1 1 Worker 3 | . 2 . 1 Builder 3 | . 1 . 2 Tunneler 1 | 1 . . . Hauler 3 | . 2 . 1 Recycler 1 | . 1 . . Operator 2 | . . . 2 Watcher 4 | . 3 . 1 Swarmer 6 | . 3 . 3 Grunt 20 | . 7 . 13 Sentry 7 | . . 2 5 Best Kill Streak 5 | 1 4 2 5 Combat Bots Only 4 | . 4 2 3 Max Kills in Single Turn 3 | 1 2 1 3 Gunslinging 1 | . 1 . . Exploded 1 | . . . 1 Melee . | . . . . Uniques/NPCs Destroyed . | . . . . Combat | -11 -10 -10 -9 -------- Run | Yrd Mat Min Mat Hostile Shots Fired 241 | . 68 12 161 Missed 65 | . 20 2 43 Damage Taken 2302 | . 540 145 1617 Core 600 | . 180 15 405 Absorbed by Shields . | . . . . Core Remaining (%) 61 | 100 . 22 . Volleys Fired 143 | 1 58 6 78 Largest 2 | 2 2 2 2 Hottest 120 | 80 120 120 120 Shots Fired 261 | 2 114 12 133 Gun 213 | 2 98 . 113 Cannon 47 | . 16 12 19 Launcher 1 | . . . 1 Special . | . . . . Kinetic 49 | . 29 . 20 Thermal 78 | . 45 12 21 Explosive 1 | . . . 1 Electromagnetic 133 | 2 40 . 91 Robot Hit Streak 21 | 1 9 12 21 Robot Miss Streak 3 | 1 3 1 3 Penetration Max . | . . . . Secondary Targets 3 | . 2 . 1 Max Gunslinging Chain 1 | . 1 . 1 Shots Hit Robots 186 | 1 74 11 100 Core Hits 78 | 1 28 4 45 Critical Kills 2 | . 2 . . Critical Parts Destroyed . | . . . . Critical Strikes 3 | . 3 . . Meltdown 1 | . 1 . . Destroy 1 | . 1 . . Corrupt 1 | . 1 . . Melee Attacks . | . . . . Impact . | . . . . Slashing . | . . . . Piercing . | . . . . Sneak Attacks . | . . . . Combat Hostiles . | . . . . Follow-up Attacks . | . . . . Damage Inflicted 2848 | 13 962 191 1682 Guns 1888 | 13 759 . 1116 Cannons 628 | . 158 191 279 Explosions 329 | . 42 . 287 Melee . | . . . . Ramming 3 | . 3 . . Kinetic 333 | . 194 . 139 Thermal 1037 | . 386 191 460 Explosive 131 | . . . 131 Electromagnetic 1344 | 13 379 . 952 Impact . | . . . . Slashing . | . . . . Piercing . | . . . . Highest Corruption 2 | . . . 2 Average Corruption 2 | . . . 2 Corruption Purged . | . . . . Corruption Blocked . | . . . . Overload Shots . | . . . . Overflow Damage 38 | . . . 38 Projectiles . | . . . . Explosions 38 | . . . 38 Melee . | . . . . Knockbacks . | . . . . Impact . | . . . . Kinetic . | . . . . Secondary . | . . . . Self-Inflicted Damage 140 | . 1 . 139 Shots 3 | . . . 3 Rammed 1 | . 1 . . Targets Rammed 1 | . 1 . . Kicked . | . . . . Crushed . | . . . . Highest Temperature 311 | 18 207 311 53 Average Temperature 59 | 12 66 147 13 Received Heat Transfer 1026 | . 258 90 678 Siege Activations . | . . . . Robots Corrupted . | . . . . Combat Hostiles . | . . . . Parts Fried 3 | . 2 . 1 Impact Corruptions . | . . . . Robots Melted 1 | . 1 . . Combat Hostiles . | . . . . Parts Melted 3 | . 2 1 . Heat Transferred 2031 | . 808 407 816 Parts Sabotaged . | . . . . Parts Stolen . | . . . . Parts Stripped . | . . . . Power Chain Reactions 4 | . 1 . 3 Alert | -11 -10 -10 -9 ------- Run | Yrd Mat Min Mat Peak Influence 372 | 5 201 31 372 Initial 16 | . 3 16 11 Average 128 | 2 82 24 195 Maximum Alert Level 1 | . 1 . 1 Low Security (%) 74 | 100 95 100 48 Level 1 25 | . 4 . 51 Level 2 . | . . . . Level 3 . | . . . . Level 4 . | . . . . Level 5 . | . . . . High Security . | . . . . Max Security . | . . . . Squads Dispatched 5 | . 1 . 4 Investigation 3 | . 1 . 2 Extermination . | . . . . Reinforcement 2 | . . . 2 Assault . | . . . . Garrison . | . . . . Intercept . | . . . . Searches Triggered . | . . . . Construction Impeded . | . . . . Haulers Reinforced . | . . . . Active Scanning Responses . | . . . . Cargo Convoy Interrupts . | . . . . Stealth | -11 -10 -10 -9 --------- Run | Yrd Mat Min Mat Distress Signals 3 | . . . 3 Communications Jammed . | . . . . Distress Signals . | . . . . Times Spotted 46 | . 12 2 32 Peak Tracking Total 6 | . 3 2 6 Tactical Retreats 4 | . . . 4 Traps | -11 -10 -10 -9 ------- Run | Yrd Mat Min Mat Traps Triggered 4 | . 1 . 3 Indirectly . | . . . . Trap Hack Attempts . | . . . . Triggered . | . . . . Disarmed . | . . . . Reprogrammed . | . . . . Reused . | . . . . Traps Extracted . | . . . . Installed . | . . . . Triggered . | . . . . Machines | -11 -10 -10 -9 ---------- Run | Yrd Mat Min Mat Machines Disabled 3 | . 1 . 2 Max in Single Turn 1 | . 1 . 1 Machines Repaired . | . . . . Machines Dismantled . | . . . . Machines Sabotaged . | . . . . Overloaded Fab Kills . | . . . . Hacking | -11 -10 -10 -9 --------- Run | Yrd Mat Min Mat Machines Accessed 10 | . 7 . 3 Terminals 8 | . 5 . 3 Fabricators . | . . . . Repair Stations . | . . . . Recycling Units 2 | . 2 . . Scanalyzers . | . . . . Garrison Access . | . . . . Total Hacks 27 | . 18 . 9 Successful 14 | . 9 . 5 Failed 13 | . 9 . 4 Catastrophic 3 | . 3 . . Database Lockouts . | . . . . Manual 17 | . 11 . 6 Terminals 22 | . 13 . 9 Fabricators . | . . . . Repair Stations . | . . . . Recycling Units 5 | . 5 . . Scanalyzers . | . . . . Garrison Access . | . . . . Terminal Hacks 4 | . 2 . 2 Record 1 | . . . 1 Prototype ID Bank 1 | . 1 . . Branch Access Points 1 | . 1 . . Alert Level 1 | . . . 1 Fabricator Hacks . | . . . . Repair Station Hacks . | . . . . Recycling Unit Hacks 2 | . 2 . . Retrieve Components 2 | . 2 . . Scanalyzer . | . . . . Garrison Access Hacks . | . . . . Unauthorized Hacks 8 | . 5 . 3 Terminals 7 | . 4 . 3 Botnet 5 | . 3 . 2 Operators 2 | . 1 . 1 Fabricators . | . . . . Repair Stations . | . . . . Recycling Units 1 | . 1 . . Reject 1 | . 1 . . Scanalyzers . | . . . . Garrison Access . | . . . . Data Cores Recovered . | . . . . Used . | . . . . Hacking Detections 9 | . 6 . 3 Full Trace Events 2 | . 1 . 1 Feedback Events . | . . . . Feedback Blocked . | . . . . Robot Schematics Acquired . | . . . . Robots Built . | . . . . Authchips . | . . . . Time . | . . . . Total Robot Build Rating . | . . . . Part Schematics Acquired . | . . . . Parts Built . | . . . . Authchips . | . . . . Time . | . . . . Total Part Build Rating . | . . . . Parts Repaired . | . . . . Time . | . . . . Parts Recycled . | . . . . Recycled Matter . | . . . . Retrieved Matter . | . . . . Retrieved Components 12 | . 12 . . Parts Scanalyzed . | . . . . Part Schematics Acquired . | . . . . Parts Damaged . | . . . . Bothacking | -11 -10 -10 -9 ------------ Run | Yrd Mat Min Mat Used RIF Installer . | . . . . Robots Hacked . | . . . . Non-combat . | . . . . Combat . | . . . . Robot Hacks Applied . | . . . . Relay Couplers Released . | . . . . Fabnet Peak Effective % . | . . . . Robots Rewired . | . . . . Allies Hacked . | . . . . Hacks Repelled . | . . . . Allies | -11 -10 -10 -9 -------- Run | Yrd Mat Min Mat Total Allies 1 | . . 1 . Largest Group 1 | . . 1 . Highest-Rated Group 31 | . . 31 . Highest-Rated Ally 31 | . . 31 . Total Orders . | . . . . Ally Attacks 2 | . . 2 . Total Damage 44 | . . 44 . Kills . | . . . . Allies Corrupted . | . . . . Allies Melted . | . . . . Intel | -11 -10 -10 -9 ------- Run | Yrd Mat Min Mat Robot Analysis Total . | . . . . Derelict Logs Recovered . | . . . . Drone Launches . | . . . . Drone Recoveries . | . . . . Exploration | -11 -10 -10 -9 ------------- Run | Yrd Mat Min Mat Turns Passed 2052 | 53 932 133 934 Spaces Moved 1193 | 48 520 101 524 Core 36 | 22 . . 14 Treads . | . . . . Legs . | . . . . Wheels 1157 | 26 520 101 510 Hover . | . . . . Flight . | . . . . Fastest Speed 50 | 50 90 90 95 Average Speed 98 | 77 94 103 104 Slowest Speed 250 | 100 115 115 250 Overloaded Moves . | . . . . Propulsion Burnouts . | . . . . Robots Hopped . | . . . . Cave-ins Triggered . | . . . . Exploration Rate (%) 38 | 3 74 28 49 Regions Visited 3 Branch Regions 1 Pre-discovered Areas . | . . . . Known Exits Taken 1 | . 1 . . Unknown Exits Taken 2 | 1 . 1 . Scrap Searched 1 | . . 1 . Spaces Dug . | . . . . Terrain Destroyed 20 | . 4 . 16 Melee . | . . . . Projectile . | . . . . AOE 20 | . 4 . 16 Terrain Rammed . | . . . . Walls Destroyed . | . . . . Machines Disabled . | . . . . Actions | -11 -10 -10 -9 --------- Run | Yrd Mat Min Mat Total 1808 | 61 852 116 779 Wait 383 | . 249 7 127 Move 1190 | 47 519 100 524 Hop . | . . . . Pick Up 38 | 6 12 1 19 Fast Attach 2 | 1 . 1 . Attach 28 | 6 5 . 17 Detach 1 | . . . 1 Swap 15 | . 5 1 9 Drop 7 | . 3 . 4 Fire 143 | 1 58 6 78 Melee . | . . . . Ram 1 | . 1 . . Kick . | . . . . Crush . | . . . . Escape Stasis . | . . . . Rewire . | . . . . Trap . | . . . . Miscellaneous . | . . . . Route ------- -11/Scrapyard -10/Materials (discovered 3 exits: *Mat x2 / *Min) -10/Mines -9/Materials (discovered 2 exits: [*Mat] / [*Min]) History --------- Turn | Location | Event 6 | -11/Scrapyard | Discovered new exit (range 16) 54 | -11/Scrapyard | Entered Materials 132 | -10/Materials | Discovered new exit (range 15) 301 | -10/Materials | Build established: Mutant 374 | -10/Materials | Core integrity fell below 50% 705 | -10/Materials | Discovered new exit (range 12) 868 | -10/Materials | Build established: Scavenger-Mutant 925 | -10/Materials | Identified exit to Mines 986 | -10/Materials | Entered Mines 989 | -10/Mines | Received a Mining Laser from a helpful Derelict 1111 | -10/Mines | Discovered new exit (range 8) 1119 | -10/Mines | Entered Materials 1119 | -9/Materials | Evolved 2 slots: Utility x2 1342 | -9/Materials | Discovered new exit (range 9) 1756 | -9/Materials | Build established: Mutant 1772 | -9/Materials | Discovered new exit (range 11) 1892 | -9/Materials | Core integrity fell below 50% 1927 | -9/Materials | Lost 3 parts (1p1u1w) 2008 | -9/Materials | Core integrity fell below 20% 2051 | -9/Materials | Lost 7 parts (3n1u3w) 2053 | -9/Materials | Destroyed by Y-45 Defender with Beam Rifle Last Messages --------------- K-01 Serf collects debris. Acquired 10 matter. K-01 Serf collects debris. Destroyed Lgt. Ion Engine. R-06 Scavenger collects Corrupted Aluminum Leg. G-34 Mercenary IFF system glitched. Com. Wheel destroyed. Hvy. EM Pulse Gun destroyed. S-10 Pest destroyed. Acquired 10 matter. S-10 Pest destroyed. Critical hit (Burn: +37). Arm. Wheel destroyed. Acquired 5 matter. Com. Wheel destroyed. EM Shotgun destroyed. Critical hit (Burn: +37). Y-45 Defender destroyed. Acquired 10 matter. Atomic Centrifuge disabled. Map ----- +----------------------------------------------------+ | | | | | | | | | | | | | | | | | | | | | | | | | ?????????????????????????????????????????????????? | | ?????????????????????????????????????????????????? | | ?????????????????????????????????????????????????? | | ?????????????????????????????????????????????????? | | ?????????????????????????????????????????????????? | | ?????????????????????????????????????????????????? | | ?????????????????????????????????????????????????? | | ?????????????????????????????????????????????????? | | ???????????????#########?????????????????????????? | | ???????????????? #?????????????????????????? | | ????????????????? ###########???????????????? | | ?????????????????? # #???????????????? | | ???????????????????# #*=[ #???????????????? | | ???????????????????# #%@[Y #???????######### | | ???????????????????# =#=""" ##??????# | | ???????????????????# %=+%"" #??????# T%= """ | | ???????????????????# *%#[""" != ##??????# / """ | | ???????????????????# =#= !! #???????# """ | | ???????????????????# # "T" = #???????# | | ???????????????????# ###########???????# | | ???????????????????# #?????????????????# | | ???????????????????# #?????????????????# | | ???????????????????# ########??????????######### | | ???????????????????# #??????????###""##"# | | ???????????????????# ############"" | | ???????????????????# % % % | | ???????????????????###### #############""" | | ????????????????????????# #???????????##"# #"# | | ????????????????????????# #???????????? ## ### | | ????????????????????????# #???????????" ?# ## | | ????????????????????????# #??????????Y" ?# ## | | ????????????????????????# #?????????? ?# ## | | ????????????????????????# #????????? ?# ## | | ????????????????????????# #???????? ## ## | | ???????????????????????? ???#######+### # | | ???????????????????????? # | | ???????????????????????? % + | | ???????????????????????# # | +----------------------------------------------------+ Best States ------------- Heat Dissipation 42 Energy Generation 14 Energy Capacity 250 Matter Stores 300 Matter Capacity 300 Sight Range 16 Terrain Scan Range 16 Terrain Scan Density 85 Armor Coverage 300 Evasion (%) 50 Recoil Reduction 1 Item Schematics ----------------- None Robot Schematics ------------------ None Fabricated ------------ Nothing Alien Tech Used ----------------- None Achievements -------------- None Challenges ------------ None Game ------ Seed SurgeCommPower Manual? 0 Play Time 00:25:14 Cumulative 52.1 hours Start 2025.03.02 @ 22:26:47 End 2025.03.02 @ 22:50:13 Sessions 1 Manual Loads 0 Difficulty Rogue Special Mode None Game No. 69 Rogue 55 Adventurer 14 Explorer 0 Win Type - Total 0 Types 0/0/0/0/0/0/0/0/0 Lore% 20 Gallery% 39 Achievement% 37 Wizard Run 0 Options --------- Layout 1 ASCII 0 Keyboard 0 Movement Mouse Keybinds 0 Fullscreen 1 Font 24/Smallcaps Map View 50x35 Zoom Use 5% Tactical HUD 0 Map Filters NONE Filters NONE Steam 1 RUN: ec006d1c-f28a-4b32-ae13-f71c30d23b2d